bitfinex/quotes_ETHUSD_20230109
["timestamp","ask_amount","ask_price","bid_price","bid_amount"]
[1673290856142,9.56508028,1335.8,1335.6,3.79766064]
[1673290856570,13.33244596,1335.8,1335.6,3.79766064]
[1673290856740,19.15900034,1335.8,1335.6,3.79766064]
[1673290856953,19.15900034,1335.8,1335.5,0.066]
[1673290856954,2.96448957,1335.7,1335.5,0.066]
[1673290857186,2.96448957,1335.7,1335.5,3.79766064]
[1673290857187,22.51181,1335.6,1335.5,3.79766064]
[1673290857376,15.04054,1335.6,1335.5,3.79766064]
[1673290857815,23.63425651,1335.6,1335.5,3.79766064]
[1673290858848,25.4924012,1335.6,1335.4,8.066]
[1673290859100,16.14698651,1335.6,1335.4,11.86366064]
[1673290859309,23.63425651,1335.6,1335.4,11.86366064]
[1673290860562,25.29401213,1335.6,1335.4,3.86366064]
[1673290860769,25.29401213,1335.6,1335.4,3.79766064]
[1673290861331,25.29401213,1335.6,1335.4,11.79766064]
[1673290861548,25.29401213,1335.6,1335.4,3.86366064]
[1673290861738,23.63425651,1335.6,1335.4,3.79766064]
[1673290862127,25.29401213,1335.6,1335.4,3.79766064]
[1673290863535,23.63425651,1335.6,1335.4,3.79766064]
[1673290863857,25.29401213,1335.6,1335.4,3.79766064]
[1673290866064,25.29401213,1335.6,1335.3,0.066]
[1673290866065,2.45044651,1335.5,1335.3,0.066]
[1673290866242,23.80917,1335.4,1335.2,8.066]
[1673290866448,23.87517,1335.4,1335.2,8.066]
[1673290867084,23.87517,1335.4,1335.2,0.066]
[1673290867324,23.87517,1335.4,1335.1,3.0]
[1673290867534,23.87517,1335.4,1335.1,6.79766064]
[1673290867758,23.87517,1335.4,1335.1,6.86366064]
[1673290868803,24.43697,1335.4,1335.1,3.86366064]
[1673290869113,24.43697,1335.4,1335.1,3.79766064]
[1673290869642,0.05,1335.2,1335.1,3.79766064]
[1673290869810,27.95297,1335.4,1335.1,4.99664171]
[1673290870167,27.95297,1335.4,1335.0,8.20312246]
[1673290870168,1.332,1335.2,1335.0,8.19215005]
[1673290870357,22.47021,1335.1,1335.0,3.98981069]
[1673290870708,22.53621,1335.1,1335.0,3.92381069]
[1673290872056,22.53621,1335.1,1335.0,0.12615005]
[1673290872377,23.86721,1335.1,1335.0,0.12615005]
[1673290873321,23.86721,1335.1,1335.0,0.1229403]
[1673290875801,22.53621,1335.1,1335.0,0.1229403]
[1673290875992,23.86921,1335.1,1335.0,0.1229403]
[1673290876862,24.43111,1335.1,1335.0,0.1229403]
[1673290877643,8.11797,1335.1,1335.0,0.1229403]
[1673290877813,22.53621,1335.1,1335.0,0.1229403]
[1673290879325,15.04614,1335.1,1335.0,0.1229403]
[1673290879720,22.53621,1335.1,1335.0,0.1229403]
[1673290882111,30.02628,1335.1,1335.0,0.1229403]
[1673290886421,22.53621,1335.1,1335.0,0.1229403]
[1673290888278,22.52021,1335.1,1335.0,0.1229403]
[1673290888494,22.50221,1335.1,1335.0,0.1229403]
[1673290888880,30.55418,1335.1,1335.0,0.1229403]
[1673290889079,30.55418,1335.1,1334.9,0.06026629]
[1673290889288,31.66062651,1335.1,1334.9,0.06026629]
[1673290889548,32.3674793,1335.1,1334.9,0.06026629]
[1673290889707,31.26103279,1335.1,1334.9,0.06026629]
[1673290890397,2.815,1335.0,1334.9,0.06026629]
[1673290890611,25.28689,1335.0,1334.9,0.06026629]
[1673290890913,25.35289,1335.0,1334.9,0.06026629]
[1673290893395,23.35289,1335.0,1334.9,0.06026629]
[1673290894353,15.86226,1335.0,1334.9,0.06026629]
[1673290895461,23.35289,1335.0,1334.9,0.06026629]
[1673290895634,15.86226,1335.0,1334.9,0.06026629]
[1673290897773,8.37163,1335.0,1334.9,0.06026629]
[1673290897937,23.35289,1335.0,1334.9,0.06026629]
[1673290900261,15.86226,1335.0,1334.9,0.06026629]
[1673290900612,0.066,1335.0,1334.9,0.06026629]
[1673290900824,28.3022693,1335.1,1334.9,0.82836156]
[1673290900825,26.4631393,1335.1,1334.9,0.82836156]
[1673290901137,25.35669279,1335.1,1334.9,0.82836156]
[1673290901312,23.20962279,1335.1,1334.9,0.82836156]
[1673290901533,23.20962279,1335.1,1334.9,0.06026629]
[1673290902362,15.71919279,1335.1,1334.9,0.06026629]
[1673290903429,16.8256393,1335.1,1334.9,0.06026629]
[1673290903647,24.3160693,1335.1,1334.9,0.06026629]
[1673290904608,23.60921651,1335.1,1334.9,0.06026629]
[1673290905186,25.26897213,1335.1,1334.9,0.06026629]
[1673290905419,1.10644651,1335.0,1334.9,0.06026629]
[1673290905641,2.96538624,1335.0,1334.9,0.06026629]
[1673290905874,1.10644651,1335.0,1334.9,0.06026629]
[1673290906177,8.59707651,1335.0,1334.9,0.06026629]
[1673290906394,8.66307651,1335.0,1334.9,0.06026629]
[1673290906555,16.15370651,1335.0,1334.9,0.06026629]
[1673290907085,8.66307651,1335.0,1334.9,0.06026629]
[1673290907569,10.52201516,1335.0,1334.9,0.06026629]
[1673290908218,18.01264516,1335.0,1334.9,0.06026629]
[1673290908525,10.52201516,1335.0,1334.9,0.06026629]
[1673290908721,18.01264516,1335.0,1334.9,0.06026629]
[1673290909109,10.52201516,1335.0,1334.9,0.06026629]
[1673290909780,3.03138516,1335.0,1334.9,0.06026629]
[1673290910099,10.45601516,1335.0,1334.9,0.06026629]
[1673290910268,10.52201516,1335.0,1334.9,0.06026629]
[1673290910798,12.18177078,1335.0,1334.9,0.06026629]
[1673290911859,19.67240078,1335.0,1334.9,0.06026629]
[1673290912089,18.56595427,1335.0,1334.9,0.06026629]
[1673290912414,12.18192656,1335.0,1334.9,0.06026629]
[1673290913210,11.07532427,1335.0,1334.9,0.06026629]
[1673290913416,12.1819411,1335.0,1334.9,0.06026629]
[1673290914410,19.66988696,1335.0,1334.9,0.06026629]
[1673290915342,26.05390013,1335.0,1334.9,0.06026629]
[1673290915551,33.54453013,1335.0,1334.9,0.06026629]
[1673290915880,35.75521843,1335.0,1334.9,0.06026629]
[1673290916097,26.05390013,1335.0,1334.9,0.06026629]
[1673290916718,27.08880841,1335.0,1334.9,0.06026629]
[1673290917208,29.86149671,1335.0,1334.9,0.06026629]
[1673290917424,27.65080841,1335.0,1334.9,0.06026629]
[1673290917980,28.20174109,1335.0,1334.9,0.06026629]
[1673290918191,30.9676717,1335.0,1334.9,0.06026629]
[1673290918366,28.20174109,1335.0,1334.9,0.06026629]
[1673290920096,30.9676717,1335.0,1334.9,0.06026629]
[1673290920670,21.2663534,1335.0,1334.8,0.09709932]
[1673290920897,1.65934939,1334.9,1334.8,0.09709932]
[1673290921205,10.25679427,1334.9,1334.8,0.09709932]
[1673290921439,8.66344488,1334.9,1334.8,0.09709932]
[1673290921621,10.76261352,1334.9,1334.8,0.09709932]
[1673290921979,1.17225488,1334.9,1334.8,0.09709932]
[1673290922281,8.59744488,1334.9,1334.8,0.09709932]
[1673290922503,1.17225488,1334.9,1334.8,3.89475996]
[1673290922661,1.10625488,1334.9,1334.8,11.78860096]
[1673290922868,1.10625488,1334.9,1334.8,19.34635096]
[1673290923108,1.10625488,1334.9,1334.8,11.85460096]
[1673290923753,1.10625488,1334.9,1334.8,15.35460096]
[1673290924146,1.10625488,1334.9,1334.8,11.85460096]
[1673290925236,1.10625488,1334.9,1334.8,15.35460096]
[1673290925547,4.42851255,1335.0,1334.8,22.84635096]
[1673290925737,2.14116316,1335.0,1334.9,6.08229574]
[1673290925930,2.14116316,1335.0,1334.9,29.49129574]
[1673290926138,1.03490828,1335.0,1334.9,51.96486574]
[1673290927733,1.03490828,1335.0,1334.9,52.61957093]
[1673290927945,1.03490828,1335.0,1334.9,51.96486574]
[1673290928941,1.03490828,1335.0,1334.9,52.61933406]
[1673290929260,1.03490828,1335.0,1334.9,55.61933406]
[1673290930043,1.03490828,1335.0,1334.9,54.96486574]
[1673290932282,1.03490828,1335.0,1334.9,62.45605574]
[1673290932686,1.03490828,1335.0,1334.9,63.11026798]
[1673290933956,1.03490828,1335.0,1334.9,62.45605574]
[1673290934882,1.03490828,1335.0,1334.9,63.11008073]
[1673290935112,0.066,1335.3,1335.0,3.5]
[1673290935322,1.10598374,1335.4,1335.3,22.46685]
[1673290935551,11.94738374,1335.5,1335.3,26.33051064]
[1673290936139,1.73378374,1335.5,1335.3,26.33051064]
[1673290936407,1.66778374,1335.5,1335.3,32.0458927]
[1673290936584,3.45972412,1335.5,1335.3,32.0458927]
[1673290936795,1.66778374,1335.5,1335.3,32.0458927]
[1673290938070,1.66778374,1335.5,1335.3,17.0679927]
[1673290938229,1.10598374,1335.5,1335.3,17.0679927]
[1673290938441,1.10598374,1335.5,1335.3,9.5790427]
[1673290938663,2.89692028,1335.5,1335.3,9.5790427]
[1673290939335,4.92475034,1335.5,1335.3,9.5790427]
[1673290939509,4.92475034,1335.5,1335.3,17.0679727]
[1673290939723,8.59389374,1335.5,1335.3,9.5790427]
[1673290939952,8.65989374,1335.5,1335.3,9.5790427]
[1673290941010,8.65989374,1335.5,1335.3,13.0790427]
[1673290941330,16.14780374,1335.5,1335.4,1.30790427]
[1673290941494,10.45016328,1335.5,1335.3,9.5790427]
[1673290941704,8.65989374,1335.5,1335.3,9.5790427]
[1673290942587,16.14772374,1335.5,1335.3,9.5790427]
[1673290942787,16.14772374,1335.5,1335.3,3.86366064]
[1673290942788,16.14764374,1335.5,1335.3,3.86366064]
[1673290942976,16.14764374,1335.5,1335.3,3.79766064]
[1673290944569,8.65981374,1335.5,1335.3,3.79766064]
[1673290945181,1.17198374,1335.5,1335.3,3.79766064]
[1673290945514,16.08192374,1335.5,1335.3,3.79766064]
[1673290945730,23.63589374,1335.5,1335.3,3.79766064]
[1673290946293,27.32054469,1335.5,1335.3,3.79766064]
[1673290946694,27.826931,1335.5,1335.2,0.066]
[1673290946901,2.89459788,1335.4,1335.2,3.79766064]
[1673290947100,14.9779,1335.3,1335.2,3.79766064]
[1673290947461,15.0439,1335.3,1335.2,3.79766064]
[1673290947857,15.0439,1335.3,1335.2,3.74766064]
[1673290948728,0.066,1335.3,1335.2,3.74766064]
[1673290949117,0.056,1335.3,1335.2,3.74766064]
[1673290949365,20.15895349,1335.4,1335.2,3.74766064]
[1673290949534,27.64781349,1335.4,1335.2,3.74766064]
[1673290951036,20.15895349,1335.4,1335.2,3.74766064]
[1673290951369,18.49997788,1335.4,1335.2,3.74766064]
[1673290951948,20.15895349,1335.4,1335.2,3.74766064]
[1673290952307,18.49997788,1335.4,1335.2,3.74766064]
[1673290952614,20.15895349,1335.4,1335.2,3.74766064]
[1673290952794,27.64781349,1335.4,1335.2,3.74766064]
[1673290955254,20.15895349,1335.4,1335.2,3.74766064]
[1673290957050,1.10598374,1335.3,1335.2,3.74766064]
[1673290958499,17.91797663,1335.3,1335.1,0.066]
[1673290958726,17.98397663,1335.3,1335.1,3.79766064]
[1673290959146,10.49502663,1335.3,1335.1,11.28766064]
[1673290959358,10.49502663,1335.3,1335.1,11.35366064]
[1673290962252,12.15400224,1335.3,1335.1,11.35366064]
[1673290963721,1.10598374,1335.2,1335.1,11.35366064]
[1673290963945,1.10598374,1335.2,1335.1,15.14786896]
[1673290964410,2.94202661,1335.2,1335.1,3.86366064]
[1673290964728,2.94202661,1335.2,1335.1,11.28773064]
[1673290964940,2.94202661,1335.2,1335.1,11.35373064]
[1673290965111,2.94202661,1335.2,1335.1,18.84380064]
[1673290965326,1.10598374,1335.2,1335.1,18.84380064]
[1673290966795,1.10598374,1335.2,1335.1,3.86366064]
[1673290966796,10.43195592,1335.2,1335.1,3.86366064]
[1673290967002,17.98746592,1335.2,1335.1,3.79766064]
[1673290967231,19.64644153,1335.2,1335.0,14.066]
[1673290967541,1.10598374,1335.1,1335.0,0.066]
[1673290967884,35.63910935,1335.2,1334.9,22.066]
[1673290968097,7.49007,1335.1,1334.9,25.86366064]
[1673290968402,0.066,1335.1,1334.9,33.35477064]
[1673290968717,37.66463469,1335.2,1334.9,25.35477064]
[1673290969088,22.68504469,1335.2,1334.9,25.35477064]
[1673290969300,30.17471469,1335.2,1334.9,25.35477064]
[1673290969931,37.66438469,1335.2,1334.9,17.86366064]
[1673290970511,1.10598374,1335.1,1334.9,17.86366064]
[1673290970665,8.59607374,1335.1,1334.9,17.86366064]
[1673290970874,8.66207374,1335.1,1334.9,17.86366064]
[1673290971085,8.66207374,1335.1,1334.9,25.35484064]
[1673290971715,1.17198374,1335.1,1334.9,25.35484064]
[1673290971925,1.10598374,1335.1,1334.9,25.35484064]
[1673290972394,8.59605374,1335.1,1334.9,30.19830864]
[1673290972602,1.17198374,1335.1,1334.9,30.19830864]
[1673290972766,1.10598374,1335.1,1334.9,30.19830864]
[1673290972974,1.10598374,1335.1,1334.9,37.68949864]
[1673290973189,12.97465908,1335.2,1335.0,6.29766064]
[1673290973444,3.19765908,1335.2,1335.1,11.28773064]
[1673290973640,2.93112863,1335.2,1335.1,11.35373064]
[1673290974249,2.93112863,1335.2,1335.1,18.84380064]
[1673290975037,2.93112863,1335.2,1335.1,11.35373064]
[1673290975182,2.93112863,1335.2,1335.1,18.84380064]
[1673290975610,2.93112863,1335.2,1335.1,26.33387064]
[1673290981368,2.93112863,1335.2,1335.1,30.44309259]
[1673290982861,5.22685224,1335.3,1335.1,30.44309259]
[1673290983017,1.90009289,1335.3,1335.2,3.79766064]
[1673290983225,1.90009289,1335.3,1335.2,34.26619064]
[1673290983226,1.83409289,1335.3,1335.2,34.26619064]
[1673290983580,1.83409289,1335.3,1335.2,40.3253389]
[1673290983959,1.83409289,1335.3,1335.2,32.8358289]
[1673290984484,1.83409289,1335.3,1335.2,28.8463189]
[1673290985165,1.83409289,1335.3,1335.2,21.3568089]
[1673290985393,1.83409289,1335.3,1335.2,28.8463189]
[1673290985557,1.83609289,1335.3,1335.2,25.3443189]
[1673290985767,1.83409289,1335.3,1335.2,25.3463189]
[1673290986005,1.83409289,1335.3,1335.2,28.8463189]
[1673290986228,1.83409289,1335.3,1335.2,32.8358289]
[1673290986416,1.83409289,1335.3,1335.2,25.3463189]
[1673290986634,4.28310525,1335.3,1335.2,17.8568089]
[1673290987398,4.28510525,1335.3,1335.2,17.8548089]
[1673290987554,4.28310525,1335.3,1335.2,17.8568089]
[1673290988546,2.94007663,1335.3,1335.2,32.8358289]
[1673290988766,4.28295929,1335.3,1335.2,17.8568089]
[1673290989144,4.28295929,1335.3,1335.2,25.3463189]
[1673290990225,4.28295929,1335.3,1335.2,17.8568089]
[1673290992078,4.28295929,1335.3,1335.2,25.3463189]
[1673290992332,2.94007663,1335.3,1335.2,25.3463189]
[1673290992960,4.28296296,1335.3,1335.2,25.3463189]
[1673290993383,4.28296296,1335.3,1335.2,11.8604969]
[1673290995166,4.28296296,1335.3,1335.2,15.3604969]
[1673290995387,2.94007663,1335.3,1335.2,30.3395169]
[1673290995748,1.83409289,1335.3,1335.2,37.8290269]
[1673290995962,1.83409289,1335.3,1335.2,43.76089759]
[1673290997256,1.83409289,1335.3,1335.2,11.8604969]
[1673290997257,4.32647536,1335.3,1335.2,11.8604969]
[1673290997704,19.30437536,1335.3,1335.2,11.8604969]
[1673290997878,19.37037536,1335.3,1335.2,11.8604969]
[1673290998335,19.37037536,1335.3,1335.2,3.8604969]
[1673290998491,19.37037536,1335.3,1335.2,3.7944969]
[1673290998708,4.39247536,1335.3,1335.2,3.7944969]
[1673290998928,4.32647536,1335.3,1335.2,3.7944969]
[1673291001595,4.32647536,1335.3,1335.2,11.2840069]
[1673291001803,4.32647536,1335.3,1335.2,11.3500069]
[1673291002012,4.32647536,1335.3,1335.2,18.8395169]
[1673291002224,4.32647536,1335.3,1335.2,11.3500069]
[1673291002225,4.32635222,1335.3,1335.2,11.3500069]
[1673291002543,4.32647347,1335.3,1335.2,11.3500069]
[1673291002863,4.3264423,1335.3,1335.2,11.3500069]
[1673291003021,4.3264423,1335.3,1335.2,3.8604969]
[1673291003232,4.3264423,1335.3,1335.2,3.7944969]
[1673291003596,4.32648238,1335.3,1335.2,3.7944969]
[1673291003755,4.32848238,1335.3,1335.2,3.7944969]
[1673291003965,4.32648238,1335.3,1335.2,3.7944969]
[1673291004333,2.49238949,1335.3,1335.2,3.7944969]
[1673291005686,36.90164721,1335.3,1335.1,0.066]
[1673291005849,36.90164721,1335.3,1334.9,22.066]
[1673291005850,25.51579056,1335.2,1334.9,22.066]
[1673291006061,9.98378986,1335.1,1334.9,25.86366064]
[1673291006313,8.66338411,1335.1,1334.9,25.86366064]
[1673291006968,1.17320411,1335.1,1334.9,25.86366064]
[1673291007124,1.10720411,1335.1,1334.9,25.86366064]
[1673291007338,2.4933119,1335.1,1334.9,25.86366064]
[1673291008019,9.9834719,1335.1,1334.9,25.86366064]
[1673291008226,8.66336411,1335.1,1334.9,25.86366064]
[1673291008689,16.15352411,1335.1,1334.9,25.86366064]
[1673291009924,23.64368411,1335.1,1334.9,25.86366064]
[1673291012071,26.97953892,1335.1,1334.9,0.066]
[1673291012285,1.10720411,1335.0,1334.8,0.09709932]
[1673291012462,16.08873411,1335.0,1334.8,0.09709932]
[1673291012815,16.15473411,1335.0,1334.8,0.09709932]
[1673291013019,22.53843,1335.0,1334.8,0.09709932]
[1673291014447,0.066,1335.0,1334.8,3.89475996]
[1673291014700,13.98455892,1335.1,1334.9,3.79766064]
[1673291014868,21.47473892,1335.1,1334.9,3.79766064]
[1673291015590,36.45547892,1335.1,1334.9,3.79766064]
[1673291015805,38.181007,1335.1,1334.9,3.79483152]
[1673291016333,38.181007,1335.1,1334.8,0.16309932]
[1673291016543,38.181007,1335.1,1334.8,3.89475996]
[1673291016544,1.10720411,1335.0,1334.8,3.89475996]
[1673291016860,19.1621018,1335.0,1334.8,0.09709932]
[1673291017084,1.683,1334.9,1334.8,0.09709932]
[1673291017301,16.66538,1334.9,1334.8,0.09709932]
[1673291017520,16.73138,1334.9,1334.8,0.09709932]
[1673291018338,9.24019,1334.9,1334.8,0.09709932]
[1673291018971,1.749,1334.9,1334.8,0.09709932]
[1673291019180,1.683,1334.9,1334.8,0.09709932]
[1673291024248,16.66538,1334.9,1334.8,0.09709932]
[1673291024570,9.24019,1334.9,1334.8,0.09709932]
[1673291025368,16.73138,1334.9,1334.8,0.09709932]
[1673291025578,28.96571128,1334.9,1334.8,0.09709932]
[1673291025839,44.01609654,1334.9,1334.8,0.09709932]
[1673291026002,44.57809654,1334.9,1334.8,0.09709932]
[1673291026207,43.47089243,1334.9,1334.8,0.09709932]
[1673291026461,43.47089243,1334.9,1334.7,0.10120327]
[1673291026672,35.20552633,1334.8,1334.7,0.10120327]
[1673291026887,30.38774681,1334.8,1334.7,0.10120327]
[1673291027098,31.76655233,1334.8,1334.7,0.10120327]
[1673291027727,29.28235,1334.8,1334.7,0.10120327]
[1673291028160,30.38774681,1334.8,1334.7,0.10120327]
[1673291028383,31.80889062,1334.8,1334.7,0.10120327]
[1673291028570,30.38774681,1334.8,1334.7,0.10120327]
[1673291028894,35.22048702,1334.8,1334.7,0.10120327]
[1673291029094,34.11509021,1334.8,1334.7,0.10120327]
[1673291029503,35.22021292,1334.8,1334.7,0.10120327]
[1673291029704,33.55935811,1334.8,1334.7,0.10120327]
[1673291031763,31.8084479,1334.8,1334.7,0.10120327]
[1673291032473,35.21924261,1334.8,1334.7,0.10120327]
[1673291032686,33.5583878,1334.8,1334.7,0.10120327]
[1673291032861,35.21924261,1334.8,1334.7,0.10120327]
[1673291033074,33.5583878,1334.8,1334.7,0.10120327]
[1673291033735,31.8084479,1334.8,1334.7,0.10120327]
[1673291035319,30.38747271,1334.8,1334.7,0.10120327]
[1673291035522,31.80701988,1334.8,1334.7,0.10120327]
[1673291035732,30.38747271,1334.8,1334.7,0.10120327]
[1673291036484,49.13639274,1334.8,1334.7,0.10120327]
[1673291036659,49.13639274,1334.8,1334.5,0.13861887]
[1673291036660,2.93493822,1334.6,1334.5,0.13861887]
[1673291036853,8.94609975,1334.6,1334.5,0.13861887]
[1673291037062,42.94967361,1334.6,1334.5,0.13861887]
[1673291037290,35.45679361,1334.6,1334.5,0.13861887]
[1673291037495,24.55995975,1334.6,1334.5,0.13861887]
[1673291037743,7.05148212,1334.6,1334.5,0.13861887]
[1673291037950,5.36348212,1334.6,1334.5,0.13861887]
[1673291038332,7.27348212,1334.6,1334.5,0.13861887]
[1673291038551,7.04348212,1334.6,1334.5,0.13861887]
[1673291040528,14.53636212,1334.6,1334.5,0.13861887]
[1673291040737,7.04348212,1334.6,1334.5,0.13861887]
[1673291041106,7.04011166,1334.6,1334.5,0.13861887]
[1673291042352,7.04011166,1334.6,1334.4,7.65046368]
[1673291042521,1.688,1334.5,1334.4,15.14231368]
[1673291042734,1.688,1334.5,1334.4,7.65046368]
[1673291042948,1.688,1334.5,1334.4,15.14446368]
[1673291043509,1.688,1334.5,1334.4,7.65046368]
[1673291044851,1.688,1334.5,1334.4,7.65065368]
[1673291045780,1.688,1334.5,1334.4,0.15665368]
[1673291045991,26.14328,1334.5,1334.4,0.09065368]
[1673291046195,26.20928,1334.5,1334.4,0.09065368]
[1673291046410,18.71584,1334.5,1334.4,0.09065368]
[1673291047164,20.40384,1334.5,1334.4,0.09065368]
[1673291047391,41.23952286,1334.5,1334.4,0.09065368]
[1673291047600,41.23952286,1334.5,1334.3,0.14876485]
[1673291047601,42.44134038,1334.5,1334.3,0.13222322]
[1673291047794,17.70727429,1334.4,1334.3,0.13222322]
[1673291048031,38.9588317,1334.4,1334.3,0.13222322]
[1673291048183,34.21569042,1334.4,1334.3,0.13222322]
[1673291048395,35.99062888,1334.4,1334.3,0.13222322]
[1673291048830,35.99064676,1334.4,1334.3,0.13222322]
[1673291049208,55.36153487,1334.4,1334.3,0.13222322]
[1673291049551,51.86153487,1334.4,1334.3,0.13222322]
[1673291049921,34.3167,1334.4,1334.3,0.13222322]
[1673291050071,25.1347,1334.4,1334.3,15.12134322]
[1673291050285,25.1347,1334.4,1334.3,0.19822322]
[1673291050286,3.9882,1334.4,1334.3,0.19822322]
[1673291050601,2.2352,1334.4,1334.3,0.13222322]
[1673291050810,9.5344,1334.5,1334.3,11.12678322]
[1673291051026,9.5344,1334.5,1334.3,25.11758268]
[1673291051027,0.066,1334.5,1334.3,25.11758268]
[1673291051268,21.45021166,1334.6,1334.3,21.61758268]
[1673291051269,21.51621166,1334.6,1334.3,21.61758268]
[1673291051439,21.51621166,1334.6,1334.3,6.62846268]
[1673291051440,22.07831166,1334.6,1334.3,6.62846268]
[1673291051645,22.07831166,1334.6,1334.3,17.62287268]
[1673291051920,22.07831166,1334.6,1334.4,3.79766064]
[1673291052122,21.51621166,1334.6,1334.5,1.79276606]
[1673291053027,0.29501166,1334.6,1334.5,0.37976606]
[1673291053188,0.22901166,1334.6,1334.5,0.37976606]
[1673291055611,0.23101166,1334.6,1334.5,0.37976606]
[1673291055771,0.22901166,1334.6,1334.5,0.37976606]
[1673291057761,0.22901166,1334.6,1334.4,25.35758064]
[1673291058055,0.22901166,1334.6,1334.4,14.066]
[1673291058239,7.72189166,1334.6,1334.4,14.066]
[1673291058546,15.28077166,1334.6,1334.4,14.066]
[1673291060650,22.77365166,1334.6,1334.4,14.066]
[1673291060815,15.28077166,1334.6,1334.4,14.066]
[1673291061020,0.29501166,1334.6,1334.4,21.55984]
[1673291061229,7.72190166,1334.6,1334.4,14.066]
[1673291061488,15.28106166,1334.6,1334.4,14.066]
[1673291061664,22.77422166,1334.6,1334.4,14.066]
[1673291062022,23.87729595,1334.6,1334.4,14.066]
[1673291062387,23.87729595,1334.6,1334.4,14.064]
[1673291062599,16.38413595,1334.6,1334.4,14.066]
[1673291062928,16.38413595,1334.6,1334.4,0.066]
[1673291063125,16.38413595,1334.6,1334.3,30.61536322]
[1673291063126,16.38413595,1334.6,1334.3,30.68136322]
[1673291063335,16.38413595,1334.6,1334.3,34.47902386]
[1673291063565,19.81768121,1334.6,1334.3,34.47902386]
[1673291063905,27.31057121,1334.6,1334.3,0.19822322]
[1673291064120,27.31057121,1334.6,1334.3,0.13222322]
[1673291064372,34.80346121,1334.6,1334.3,0.13222322]
[1673291064540,1.10307429,1334.5,1334.3,0.13222322]
[1673291064701,22.482,1334.4,1334.3,0.13222322]
[1673291064905,22.548,1334.4,1334.3,0.13222322]
[1673291065567,23.65107429,1334.4,1334.3,0.13222322]
[1673291065777,22.548,1334.4,1334.3,0.13222322]
[1673291066182,23.65107429,1334.4,1334.3,0.13222322]
[1673291067533,25.10842514,1334.4,1334.3,0.13222322]
[1673291067748,26.76352367,1334.4,1334.3,0.13222322]
[1673291068272,34.25752367,1334.4,1334.3,0.13222322]
[1673291068498,26.76352367,1334.4,1334.3,0.13222322]
[1673291068709,28.10452367,1334.4,1334.3,0.13222322]
[1673291068945,28.10452367,1334.4,1334.3,0.12955908]
[1673291069328,29.8829704,1334.4,1334.3,0.12955908]
[1673291070206,30.98669416,1334.4,1334.3,0.12955908]
[1673291070424,31.54889416,1334.4,1334.3,0.12955908]
[1673291070793,29.34209611,1334.4,1334.3,0.12955908]
[1673291071215,32.89389416,1334.4,1334.3,0.12955908]
[1673291071426,30.68709611,1334.4,1334.3,0.12955908]
[1673291071638,40.38789416,1334.4,1334.3,0.12955908]
[1673291071856,38.18109611,1334.4,1334.3,0.12955908]
[1673291072321,40.38789416,1334.4,1334.3,0.12955908]
[1673291072542,38.18109611,1334.4,1334.3,0.12955908]
[1673291073544,39.28827893,1334.4,1334.3,0.12955908]
[1673291073755,38.18109611,1334.4,1334.3,0.12955908]
[1673291074064,39.28836002,1334.4,1334.3,0.12955908]
[1673291074279,38.18109611,1334.4,1334.3,0.12955908]
[1673291077282,36.84009611,1334.4,1334.3,0.12955908]
[1673291078497,39.04689416,1334.4,1334.3,0.12955908]
[1673291079673,36.84009611,1334.4,1334.3,0.12955908]
[1673291080068,39.04689416,1334.4,1334.3,0.12955908]
[1673291080586,39.05278222,1334.4,1334.2,0.10211282]
[1673291080796,2.56467488,1334.3,1334.2,0.10211282]
[1673291081004,25.04835488,1334.3,1334.2,0.10211282]
[1673291081232,26.77534147,1334.3,1334.2,0.10211282]
[1673291081586,25.11435488,1334.3,1334.2,0.10211282]
[1673291081946,25.11135623,1334.3,1334.2,0.10211282]
[1673291084188,25.67365623,1334.3,1334.2,0.10211282]
[1673291085866,24.21930403,1334.3,1334.2,0.10211282]
[1673291087519,33.96090403,1334.3,1334.2,0.10211282]
[1673291087726,32.85358,1334.3,1334.2,0.10211282]
[1673291088781,25.35902,1334.3,1334.2,0.10211282]
[1673291090149,33.96090403,1334.3,1334.2,0.10211282]
[1673291090588,18.97178403,1334.3,1334.2,0.10211282]
[1673291091520,17.86446,1334.3,1334.2,0.10211282]
[1673291092195,25.35902,1334.3,1334.2,0.10211282]
[1673291092794,33.96090403,1334.3,1334.2,0.10211282]
[1673291093351,26.46634403,1334.3,1334.2,0.10211282]
[1673291095342,29.935196,1334.3,1334.2,0.10211282]
[1673291095562,28.27420941,1334.3,1334.2,0.10211282]
[1673291095717,29.935196,1334.3,1334.2,0.10211282]
[1673291095932,35.76876941,1334.3,1334.2,0.10211282]
[1673291096171,36.32243197,1334.3,1334.2,0.10211282]
[1673291096554,37.43054205,1334.3,1334.2,0.10211282]
[1673291096765,29.93598205,1334.3,1334.2,0.10211282]
[1673291096991,35.85956659,1334.3,1334.2,0.10211282]
[1673291097203,37.66743197,1334.3,1334.2,0.10211282]
[1673291098555,39.87423002,1334.3,1334.2,0.10211282]
[1673291100475,36.32243197,1334.3,1334.2,0.10211282]
[1673291101078,38.52923002,1334.3,1334.2,0.10211282]
[1673291102100,41.36383926,1334.3,1334.2,0.10211282]
[1673291103188,32.20829267,1334.3,1334.2,0.10211282]
[1673291103438,41.36772117,1334.3,1334.2,0.10211282]
[1673291103636,17.54504117,1334.3,1334.2,0.10211282]
[1673291103846,2.67156812,1334.3,1334.2,9.01023282]
[1673291104035,2.60556812,1334.3,1334.2,0.16811282]
[1673291104254,2.60556812,1334.3,1334.2,0.10211282]
[1673291104670,2.60556812,1334.3,1334.2,0.48497088]
[1673291105035,2.60556812,1334.3,1334.2,0.10211282]
[1673291105345,17.59468812,1334.3,1334.2,0.10002432]
[1673291105554,17.66068812,1334.3,1334.2,0.10002432]
[1673291106373,10.16612812,1334.3,1334.2,0.10002432]
[1673291106759,17.66068812,1334.3,1334.2,0.10002432]
[1673291107304,10.16612812,1334.3,1334.2,0.10002432]
[1673291107497,17.66068812,1334.3,1334.2,1.28267353]
[1673291108179,17.66068812,1334.3,1334.2,0.10002432]
[1673291108180,18.21559774,1334.3,1334.2,0.10002432]
[1673291108339,28.38938729,1334.3,1334.2,0.10002432]
[1673291108552,31.1553179,1334.3,1334.2,0.10002432]
[1673291108969,28.38938729,1334.3,1334.2,0.10002432]
[1673291109181,31.1553179,1334.3,1334.2,0.10002432]
[1673291109570,31.16891085,1334.3,1334.2,0.10002432]
[1673291109871,28.94851985,1334.3,1334.2,0.10002432]
[1673291110179,28.94851985,1334.3,1334.1,0.12657072]
[1673291110338,5.05482934,1334.2,1334.1,0.12657072]
[1673291110548,27.60618934,1334.2,1334.1,0.12657072]
[1673291111173,31.07865604,1334.2,1334.1,0.12657072]
[1673291111429,29.41405472,1334.2,1334.1,0.12657072]
[1673291111611,31.07863267,1334.2,1334.1,0.12657072]
[1673291112381,29.41405472,1334.2,1334.1,0.12657072]
[1673291112755,32.17998533,1334.2,1334.1,0.12657072]
[1673291113435,39.67510533,1334.2,1334.1,0.12657072]
[1673291114119,43.77160576,1334.2,1334.1,0.12657072]